fUSD/lending_fUSD_20240119
["ID","MTS","AMOUNT","RATE_DAILY","PERIOD"]
[312172733,1705678264718,-500.0,0.00022739,2]
[312172734,1705678264731,-849.95,0.00022739,2]
[312172735,1705678264744,-500.0,0.00022739,2]
[312172736,1705678264756,-588.93,0.00022739,2]
[312172737,1705678264767,-500.0,0.00022739,2]
[312172738,1705678264780,-500.0,0.00022739,2]
[312172739,1705678264794,-829.52,0.00022739,2]
[312172740,1705678264806,-2495.55,0.00022739,2]
[312172741,1705678264818,-788.2,0.00022739,2]
[312172742,1705678264832,-731.33,0.00022739,2]
[312172743,1705678264847,-500.0,0.00022739,2]
[312172744,1705678264859,-500.0,0.00022739,2]
[312172745,1705678264870,-500.0,0.00022739,2]
[312172746,1705678264883,-500.0,0.00022739,2]
[312172747,1705678264898,-500.0,0.00022739,2]
[312172748,1705678264910,-634.89,0.00022739,2]
[312172749,1705678264923,-791.03,0.00022739,2]
[312172750,1705678264936,-500.0,0.00022739,2]
[312172751,1705678264948,-500.0,0.00022739,2]
[312172752,1705678264960,-1759.05,0.00022739,2]
[312172753,1705678264973,-645.26,0.00022739,2]
[312172754,1705678264985,-500.0,0.00022739,2]
[312172755,1705678264998,-687.51,0.00022739,2]
[312172756,1705678265011,-500.0,0.00022739,2]
[312172757,1705678265026,-500.0,0.00022739,2]
[312172758,1705678265042,-500.0,0.00022739,2]
[312172759,1705678265057,-542.98,0.00022739,2]
[312172760,1705678265070,-684.71,0.00022739,2]
[312172761,1705678265083,-713.71,0.00022739,2]
[312172762,1705678265094,-911.28,0.00022739,2]
[312172763,1705678265106,-616.72,0.00022739,2]
[312172764,1705678265118,-500.0,0.00022739,2]
[312172765,1705678265131,-500.0,0.00022739,2]
[312172766,1705678265145,-500.0,0.00022739,2]
[312172767,1705678265158,-889.99,0.00022739,2]
[312172768,1705678265172,-577.21,0.00022739,2]
[312172769,1705678265186,-508.68,0.00022739,2]
[312172770,1705678265197,-500.0,0.00022739,2]
[312172771,1705678265210,-549.42,0.00022739,2]
[312172772,1705678265222,-957.59,0.00022739,2]
[312172773,1705678265235,-500.0,0.00022739,2]
[312172774,1705678265247,-1588.65,0.00022739,2]
[312172775,1705678265259,-500.0,0.00022739,2]
[312172776,1705678265271,-500.0,0.00022739,2]
[312172777,1705678265283,-500.0,0.00022739,2]
[312172778,1705678265294,-500.0,0.00022739,2]
[312172779,1705678265307,-874.67,0.00022739,2]
[312172780,1705678265319,-500.0,0.00022739,2]
[312172781,1705678265333,-500.0,0.00022739,2]
[312172782,1705678265347,-500.0,0.00022739,2]
[312172783,1705678265360,-500.0,0.00022739,2]
[312172784,1705678265373,-500.0,0.00022739,2]
[312172785,1705678265386,-500.0,0.00022739,2]
[312172786,1705678265399,-500.0,0.00022739,2]
[312172787,1705678265411,-500.0,0.00022739,2]
[312172788,1705678265423,-973.68,0.00022739,2]
[312172789,1705678265436,-2586.47,0.00022739,2]
[312172790,1705678265449,-512.93,0.00022739,2]
[312172791,1705678265463,-798.26,0.00022739,2]
[312172792,1705678265483,-500.0,0.00022739,2]
[312172793,1705678265496,-163.02,0.00022739,2]
[312172794,1705678265508,-1209.83,0.00022739,2]
[312172795,1705678265521,-642.84,0.00022739,2]
[312172796,1705678265533,-500.0,0.00022739,2]
[312172797,1705678265546,-936.38,0.00022739,2]
[312172798,1705678265560,-500.0,0.00022739,2]
[312172799,1705678265575,-1155.52,0.00022739,2]
[312172800,1705678265589,-508.85,0.00022739,2]
[312172801,1705678265603,-500.0,0.00022739,2]
[312172802,1705678265616,-500.0,0.00022739,2]
[312172803,1705678265630,-874.6,0.00022739,2]
[312172804,1705678265643,-1683.81,0.00022739,2]
[312172805,1705678265656,-500.0,0.00022739,2]
[312172806,1705678265669,-1101.12,0.00022739,2]
[312172807,1705678265682,-1902.57,0.00022739,2]
[312172808,1705678265696,-1649.75,0.00022739,2]
[312172809,1705678265709,-500.0,0.00022739,2]
[312172810,1705678265721,-500.0,0.00022739,2]
[312172811,1705678265733,-1427.46,0.00022739,2]
[312172812,1705678265746,-500.0,0.00022739,2]
[312172813,1705678265759,-500.0,0.00022739,2]
[312172814,1705678265773,-693.46,0.00022739,2]
[312172815,1705678265786,-782.46,0.00022739,2]
[312172816,1705678265799,-2523.58,0.00022739,2]
[312172817,1705678265812,-798.73,0.00022739,2]
[312172818,1705678265828,-500.0,0.00022739,2]
[312172819,1705678265840,-2927.77,0.00022739,2]
[312172820,1705678265852,-500.0,0.00022739,2]
[312172821,1705678265866,-500.0,0.00022739,2]
[312172822,1705678265878,-500.0,0.00022739,2]
[312172823,1705678265891,-558.05,0.00022739,2]
[312172824,1705678265904,-1720.68,0.00022739,2]
[312172825,1705678265917,-1245.53,0.00022739,2]
[312172826,1705678265929,-500.0,0.00022739,2]
[312172827,1705678265942,-1313.85,0.00022739,2]
[312172828,1705678265954,-500.0,0.00022739,2]
[312172829,1705678265966,-1065.88,0.00022739,2]
[312172830,1705678265979,-500.0,0.00022739,2]
[312172831,1705678265992,-1751.08,0.00022739,2]
[312172832,1705678266004,-500.0,0.00022739,2]
[312172833,1705678266017,-652.01,0.00022739,2]
[312172834,1705678266029,-500.0,0.00022739,2]
[312172835,1705678266043,-500.0,0.00022739,2]
[312172836,1705678266056,-616.53,0.00022739,2]
[312172837,1705678266068,-500.0,0.00022739,2]
[312172838,1705678266084,-854.13,0.00022739,2]
[312172839,1705678266111,-4654.98,0.00022739,2]
[312172840,1705678266127,-1355.37,0.00022739,2]
[312172841,1705678266142,-500.0,0.00022739,2]
[312172842,1705678266157,-688.22,0.00022739,2]
[312172843,1705678266171,-500.0,0.00022739,2]
[312172844,1705678266184,-500.0,0.00022739,2]
[312172845,1705678266198,-861.68,0.00022739,2]
[312172846,1705678266213,-614.59,0.00022739,2]
[312172847,1705678266228,-500.0,0.00022739,2]
[312172848,1705678266241,-723.49,0.00022739,2]
[312172849,1705678266256,-899.05,0.00022739,2]
[312172850,1705678266269,-500.0,0.00022739,2]
[312172851,1705678266282,-4897.22,0.00022739,2]
[312172852,1705678266296,-500.0,0.00022739,2]
[312172853,1705678266310,-1831.94,0.00022739,2]
[312172854,1705678266325,-852.38,0.00022739,2]
[312172855,1705678266338,-500.0,0.00022739,2]
[312172856,1705678266353,-705.55,0.00022739,2]
[312172857,1705678266366,-715.8,0.00022739,2]
[312172858,1705678266379,-1635.03,0.00022739,2]
[312172859,1705678266391,-544.37,0.00022739,2]
[312172860,1705678266405,-952.15,0.00022739,2]
[312172861,1705678266419,-757.76,0.00022739,2]
[312172862,1705678266433,-1958.54,0.00022739,2]
[312172863,1705678266446,-500.0,0.00022739,2]
[312172864,1705678266459,-975.91,0.00022739,2]
[312172865,1705678266472,-500.0,0.00022739,2]
[312172866,1705678266484,-2022.58,0.00022739,2]
[312172867,1705678266498,-500.0,0.00022739,2]
[312172868,1705678266512,-701.67,0.00022739,2]
[312172869,1705678266524,-6494.5,0.00022739,2]
[312172870,1705678266538,-1219.57,0.00022739,2]
[312172871,1705678266550,-500.0,0.00022739,2]
[312172872,1705678266568,-1253.16,0.00022739,2]
[312172873,1705678266586,-1300.08,0.00022739,2]
[312172874,1705678266601,-3234.69,0.00022739,2]
[312172875,1705678266614,-500.0,0.00022739,2]
[312172876,1705678266627,-500.0,0.00022739,2]
[312172877,1705678266641,-9572.5,0.00022739,2]
[312172878,1705678266655,-565.57,0.00022739,2]
[312172879,1705678266671,-7806.92,0.00022739,2]
[312172880,1705678266686,-500.0,0.00022739,2]
[312172881,1705678266700,-816.31,0.00022739,2]
[312172882,1705678266715,-2361.38,0.00022739,2]
[312172883,1705678266730,-1402.34,0.00022739,2]
[312172884,1705678266744,-500.0,0.00022739,2]
[312172885,1705678266757,-500.0,0.00022739,2]
[312172886,1705678266771,-2376.67,0.00022739,2]
[312172887,1705678266784,-500.0,0.00022739,2]
[312172888,1705678266798,-500.0,0.00022739,2]
[312172889,1705678266811,-534.94,0.00022739,2]
[312172890,1705678266825,-610.32,0.00022739,2]
[312172891,1705678266837,-591.69,0.00022739,2]
[312172892,1705678266851,-500.0,0.00022739,2]
[312172893,1705678266863,-717.79,0.00022739,2]
[312172894,1705678266877,-1362.82,0.00022739,2]
[312172895,1705678266889,-623.99,0.00022739,2]
[312172896,1705678266902,-598.75,0.00022739,2]
[312172897,1705678266915,-500.0,0.00022739,2]
[312172898,1705678266927,-500.0,0.00022739,2]
[312172899,1705678266941,-19099.25,0.00022739,2]
[312172900,1705678266954,-4157.3,0.00022739,2]
[312172901,1705678266967,-500.0,0.00022739,2]
[312172902,1705678266981,-2771.57,0.00022739,2]
[312172903,1705678266994,-500.0,0.00022739,2]
[312172904,1705678267007,-1045.96,0.00022739,2]
[312172905,1705678267021,-500.0,0.00022739,2]
[312172906,1705678267040,-500.0,0.00022739,2]
[312172907,1705678267053,-12697.96,0.00022739,2]
[312172908,1705678267067,-500.0,0.00022739,2]
[312172909,1705678267083,-571.57,0.00022739,2]
[312172910,1705678267097,-511.47,0.00022739,2]
[312172911,1705678267112,-1964.65,0.00022739,2]
[312172912,1705678267128,-1098.53,0.00022739,2]
[312172913,1705678267142,-500.0,0.00022739,2]
[312172914,1705678267157,-1348.5,0.00022739,2]
[312172915,1705678267170,-2100.0,0.00022739,2]
[312172916,1705678267184,-949.39,0.00022739,2]
[312172917,1705678267198,-2445.96,0.00022739,2]
[312172918,1705678267211,-1269.53,0.00022739,2]
[312172919,1705678267225,-500.0,0.00022739,2]
[312172920,1705678267239,-500.0,0.00022739,2]
[312172921,1705678267252,-942.89,0.00022739,2]
[312172922,1705678267266,-529.86,0.00022739,2]
[312172923,1705678267279,-500.0,0.00022739,2]
[312172924,1705678267292,-1371.23,0.00022739,2]
[312172925,1705678267306,-610.34,0.00022739,2]
[312172926,1705678267320,-769.96,0.00022739,2]
[312172927,1705678267335,-2348.96,0.00022739,2]
[312172928,1705678267347,-1842.12,0.00022739,2]
[312172929,1705678267365,-500.0,0.00022739,2]
[312172930,1705678267379,-681.74,0.00022739,2]
[312172931,1705678267393,-500.0,0.00022739,2]
[312172932,1705678267405,-2360.64,0.00022739,2]
[312172933,1705678267418,-566.01,0.00022739,2]
[312172934,1705678267431,-3098.94,0.00022739,2]
[312172935,1705678267444,-677.65,0.00022739,2]
[312172936,1705678267459,-848.48,0.00022739,2]
[312172937,1705678267473,-676.33,0.00022739,2]
[312172938,1705678267487,-1127.71,0.00022739,2]
[312172939,1705678267501,-1350.13,0.00022739,2]
[312172940,1705678267514,-500.0,0.00022739,2]
[312172941,1705678267528,-1745.76,0.00022739,2]
[312172942,1705678267540,-1044.1,0.00022739,2]
[312172943,1705678267553,-500.0,0.00022739,2]
[312172944,1705678267567,-1150.91,0.00022739,2]
[312172945,1705678267581,-1230.61,0.00022739,2]
[312172946,1705678267594,-1395.71,0.00022739,2]
[312172947,1705678267607,-576.08,0.00022739,2]
[312172948,1705678267620,-500.0,0.00022739,2]
[312172949,1705678267634,-500.0,0.00022739,2]
[312172950,1705678267648,-1856.19,0.00022739,2]
[312172951,1705678267661,-1448.18,0.00022739,2]
[312172952,1705678267674,-1106.0,0.00022739,2]
[312172953,1705678267689,-500.0,0.00022739,2]
[312172954,1705678267702,-1237.53,0.00022739,2]
[312172955,1705678267717,-739.48,0.00022739,2]
[312172956,1705678267731,-500.0,0.00022739,2]
[312172957,1705678267745,-975.36,0.00022739,2]
[312172958,1705678267758,-2784.75,0.00022739,2]
[312172959,1705678267772,-744.99,0.00022739,2]
[312172960,1705678267785,-2811.82,0.00022739,2]
[312172961,1705678267799,-500.0,0.00022739,2]
[312172962,1705678267812,-500.0,0.00022739,2]
[312172963,1705678267827,-2078.94,0.00022739,2]
[312172964,1705678267840,-10549.01,0.00022739,2]
[312172965,1705678267852,-500.0,0.00022739,2]
[312172966,1705678267864,-5004.8,0.00022739,2]
[312172967,1705678267876,-1479.97,0.00022739,2]
[312172968,1705678267888,-1243.23,0.00022739,2]
[312172969,1705678267900,-730.99,0.00022739,2]
[312172970,1705678267912,-1125.39,0.00022739,2]
[312172971,1705678267924,-743.57,0.00022739,2]
[312172972,1705678267936,-716.2,0.00022739,2]
[312172973,1705678267948,-500.0,0.00022739,2]
[312172974,1705678267961,-500.0,0.00022739,2]
[312172975,1705678267973,-1150.08,0.00022739,2]
[312172976,1705678267985,-547.1,0.00022739,2]
[312172977,1705678268010,-1113.73,0.00022739,2]
[312172978,1705678268026,-500.0,0.00022739,2]
[312172979,1705678268041,-826.5,0.00022739,2]
[312172980,1705678268056,-500.0,0.00022739,2]
[312172981,1705678268070,-1154.17,0.00022739,2]
[312172982,1705678268086,-3340.4,0.00022739,2]
[312172983,1705678268101,-500.0,0.00022739,2]
[312172984,1705678268116,-693.95,0.00022739,2]
[312172985,1705678268130,-1747.58,0.00022739,2]
[312172986,1705678268144,-776.7,0.00022739,2]
[312172987,1705678268157,-711.65,0.00022739,2]
[312172988,1705678268169,-2672.86,0.00022739,2]
[312172989,1705678268186,-500.0,0.00022739,2]
[312172990,1705678268199,-1055.87,0.00022739,2]
[312172991,1705678268211,-517.38,0.00022739,2]
[312172992,1705678268225,-722.82,0.00022739,2]
[312172993,1705678268238,-4742.2,0.00022739,2]
[312172994,1705678268250,-5753.61,0.00022739,2]
[312172995,1705678268262,-500.0,0.00022739,2]
[312172996,1705678268274,-1381.2,0.00022739,2]
[312172997,1705678268287,-517.67,0.00022739,2]
[312172998,1705678268299,-777.57,0.00022739,2]
[312172999,1705678268311,-1473.76,0.00022739,2]
[312173000,1705678268324,-500.0,0.00022739,2]
[312173001,1705678268337,-1037.7,0.00022739,2]
[312173002,1705678268349,-500.0,0.00022739,2]
[312173003,1705678268363,-500.0,0.00022739,2]
[312173004,1705678268375,-2333.34,0.00022739,2]
[312173005,1705678268387,-570.31,0.00022739,2]
[312173006,1705678268400,-542.82,0.00022739,2]
[312173007,1705678268411,-1929.89,0.00022739,2]
[312173008,1705678268424,-564.38,0.00022739,2]
[312173009,1705678268436,-2379.06,0.00022739,2]
[312173010,1705678268446,-500.0,0.00022739,2]
[312173011,1705678268456,-500.0,0.00022739,5]
[312173012,1705678268465,-648.08,0.00022739,2]
[312173013,1705678268475,-859.94,0.00022739,2]
[312173014,1705678268485,-680.47,0.00022739,2]
[312173015,1705678268495,-1380.56,0.00022739,2]
[312173016,1705678268505,-1362.21,0.00022739,2]
[312173017,1705678268516,-1026.83,0.00022739,2]
[312173018,1705678268527,-745.48,0.00022739,2]
[312173019,1705678268536,-2959.43,0.00022739,2]
[312173020,1705678268546,-688.12,0.00022739,2]
[312173021,1705678268556,-4341.8,0.00022739,2]
[312173022,1705678268566,-220.52253858,0.00022739,2]
[312173023,1705678268578,-500.0,0.00022739,2]
[312173024,1705678268588,-1109.11,0.00022739,2]
[312173025,1705678268598,-1406.22,0.00022739,2]
[312173026,1705678268608,-503.34,0.00022739,2]
[312173027,1705678268617,-500.0,0.00022739,2]
[312173028,1705678268626,-1036.56,0.00022739,2]
[312173029,1705678268636,-500.0,0.00022739,2]
[312173030,1705678268645,-250.51653437,0.00022739,2]
[312173031,1705678268654,-500.0,0.00022739,2]
[312173032,1705678268664,-500.0,0.00022739,2]
[312173033,1705678268673,-833.62,0.00022739,2]
[312173034,1705678268682,-4679.12,0.00022739,2]
[312173035,1705678268692,-821.08,0.00022739,2]
[312173036,1705678268702,-1148.48,0.00022739,2]
[312173037,1705678268711,-2555.85,0.00022739,2]
[312173038,1705678268721,-668.1,0.00022739,2]
[312173039,1705678268732,-787.79,0.00022739,2]
[312173040,1705678268742,-766.81,0.00022739,2]
[312173041,1705678268752,-15389.13,0.00022739,2]
[312173042,1705678269680,-561.4,0.00022739,2]
[312173043,1705678269701,-1090.18,0.00022739,2]
[312173044,1705678269714,-1440.08,0.00022739,2]
[312173045,1705678269723,-500.0,0.00022739,2]
[312173046,1705678269733,-500.0,0.00022739,2]
[312173047,1705678269742,-500.0,0.00022739,2]
[312173048,1705678269752,-500.0,0.00022739,2]
[312173049,1705678269761,-500.0,0.00022739,2]
[312173050,1705678269770,-928.69,0.00022739,2]
[312173051,1705678269779,-661.75,0.00022739,2]
[312173052,1705678269789,-500.0,0.00022739,2]
[312173053,1705678269798,-500.0,0.00022739,2]
[312173054,1705678269808,-2099.71,0.00022739,2]
[312173055,1705678269817,-2891.79,0.00022739,2]
[312173056,1705678269830,-855.2,0.00022739,2]
[312173057,1705678269840,-743.82,0.00022739,2]
[312173058,1705678269849,-500.0,0.00022739,2]
[312173059,1705678269859,-500.0,0.00022739,2]
[312173060,1705678269869,-500.0,0.00022739,2]
[312173061,1705678269878,-500.0,0.00022739,2]
[312173062,1705678269888,-1258.67,0.00022739,2]
[312173063,1705678269898,-500.0,0.0002274,2]
[312173064,1705678269908,-11127.45990603,0.00022741,2]
[312173065,1705678269917,-150.0,0.00022766,2]
[312173066,1705678269927,-11127.45990603,0.00022853,2]
[312173067,1705678269937,-1755.66648855,0.00022876,2]
[312173068,1705678269947,-11127.45990603,0.00022965,2]
[312173069,1705678269957,-2879.1362076,0.0002298,2]
[312173070,1705678269967,-150.0,0.00022999,2]
[312173071,1705678269977,-1726423.17469948,0.00023,2]
[312173072,1705678269987,-151.0,0.00023,7]
[312173073,1705678269997,-516720.11725645,0.00023,2]
[312173074,1705678270007,-151.0,0.00023,7]
[312173075,1705678270018,-182.808643,0.00023,7]
[312173076,1705678270027,-151.0,0.00023,7]
[312173077,1705678270037,-151.0,0.00023,7]
[312173078,1705678270048,-151.0,0.00023,7]
[312173079,1705678270057,-151.0,0.00023,7]
[312173080,1705678270067,-151.0,0.00023,7]
[312173081,1705678270078,-151.0,0.00023,7]
[312173082,1705678270089,-151.0,0.00023,7]
[312173083,1705678270098,-151.0,0.00023,7]
[312173084,1705678270109,-158.947325,0.00023,7]
[312173085,1705678270118,-158.947325,0.00023,7]
[312173086,1705678270129,-151.735733,0.00023,7]
[312173087,1705678270139,-151.735733,0.00023,7]
[312173088,1705678270148,-151.0,0.00023,7]
[312173089,1705678270158,-231.817334,0.00023,7]
[312173090,1705678270167,-231.817334,0.00023,7]
[312173091,1705678270177,-151.0,0.00023,7]
[312173092,1705678270186,-151.0,0.00023,7]
[312173093,1705678270197,-198.585139,0.00023,7]
[312173094,1705678270206,-171.168985,0.00023,7]
[312173095,1705678270216,-341.167574,0.00023,7]
[312173096,1705678270227,-341.167574,0.00023,7]
[312173097,1705678270236,-151.0,0.00023,7]
[312173098,1705678270246,-1174.310812,0.00023,7]
[312173099,1705678270255,-1174.310812,0.00023,7]
[312173100,1705678270265,-151.0,0.00023,7]
[312173101,1705678270274,-1922.337468,0.00023,7]
[312173102,1705678270284,-1922.337468,0.00023,7]
[312173103,1705678270294,-151.0,0.00023,7]
[312173104,1705678270303,-151.0,0.00023,7]
[312173105,1705678270313,-151.0,0.00023,7]
[312173106,1705678270323,-151.0,0.00023,7]
[312173107,1705678270335,-151.0,0.00023,7]
[312173108,1705678270344,-265.810857,0.00023,7]
[312173109,1705678270354,-265.810857,0.00023,7]
[312173110,1705678270364,-919.850186,0.00023,7]
[312173111,1705678270373,-919.850186,0.00023,7]
[312173112,1705678270383,-767.336428,0.00023,7]
[312173113,1705678270392,-767.336428,0.00023,7]
[312173114,1705678270403,-340.117484,0.00023,7]
[312173115,1705678270413,-340.117484,0.00023,7]
[312173116,1705678270423,-151.0,0.00023,7]
[312173117,1705678270433,-151.0,0.00023,7]
[312173118,1705678270443,-151.0,0.00023,7]
[312173119,1705678270452,-441.834862,0.00023,7]
[312173120,1705678270462,-441.834862,0.00023,7]
[312173121,1705678270472,-151.0,0.00023,7]
[312173122,1705678270482,-151.0,0.00023,7]
[312173123,1705678270491,-151.0,0.00023,7]
[312173124,1705678270501,-10000.0,0.00023,7]
[312173125,1705678270511,-10000.0,0.00023,7]
[312173126,1705678270521,-10000.0,0.00023,7]
[312173127,1705678270531,-151.0,0.00023,7]
[312173128,1705678270540,-151.0,0.00023,7]
[312173129,1705678270550,-151.0,0.00023,7]
[312173130,1705678270561,-6207.719811,0.00023,7]
[312173131,1705678270571,-6207.719811,0.00023,7]
[312173132,1705678270583,-151.0,0.00023,7]
[312173133,1705678270592,-7947.432464,0.00023,7]
[312173134,1705678270602,-7947.432464,0.00023,7]
[312173135,1705678270612,-150.0,0.00023003,2]
[312173136,1705678270623,-264.098224,0.00023013,7]
[312173137,1705678270633,-151.0,0.00023013,7]
[312173138,1705678270643,-151.0,0.00023013,7]
[312173139,1705678270652,-151.0,0.00023013,7]
[312173140,1705678270662,-187.321198,0.00023013,7]
[312173141,1705678270671,-151.38213,0.00023013,7]
[312173142,1705678270681,-151.0,0.00023013,7]
[312173143,1705678270690,-151.0,0.00023013,7]
[312173144,1705678270700,-154.910278,0.00023013,7]
[312173145,1705678270709,-158.947325,0.00023013,7]
[312173146,1705678270719,-158.947325,0.00023013,7]
[312173147,1705678270728,-151.735733,0.00023013,7]
[312173148,1705678270738,-151.735733,0.00023013,7]
[312173149,1705678270748,-151.0,0.00023013,7]
[312173150,1705678270758,-231.817334,0.00023013,7]
[312173151,1705678270767,-231.817334,0.00023013,7]
[312173152,1705678270777,-151.0,0.00023013,7]
[312173153,1705678270787,-151.0,0.00023013,7]
[312173154,1705678270796,-341.167574,0.00023013,7]
[312173155,1705678270805,-341.167574,0.00023013,7]
[312173156,1705678270815,-151.0,0.00023013,7]
[312173157,1705678270824,-1174.310812,0.00023013,7]
[312173158,1705678270834,-1174.310812,0.00023013,7]
[312173159,1705678270844,-151.0,0.00023013,7]
[312173160,1705678270854,-1922.337468,0.00023013,7]
[312173161,1705678270863,-1922.337468,0.00023013,7]
[312173162,1705678270873,-151.0,0.00023013,7]
[312173163,1705678270882,-151.0,0.00023013,7]
[312173164,1705678270891,-151.0,0.00023013,7]
[312173165,1705678270901,-151.0,0.00023013,7]
[312173166,1705678270910,-151.0,0.00023013,7]
[312173167,1705678270920,-265.810857,0.00023013,7]
[312173168,1705678270929,-265.810857,0.00023013,7]
[312173169,1705678270939,-919.850186,0.00023013,7]
[312173170,1705678270948,-919.850186,0.00023013,7]
[312173171,1705678270958,-767.336428,0.00023013,7]
[312173172,1705678270968,-767.336428,0.00023013,7]
[312173173,1705678270977,-340.117484,0.00023013,7]
[312173174,1705678270986,-340.117484,0.00023013,7]
[312173175,1705678270996,-151.0,0.00023013,7]
[312173176,1705678271006,-151.0,0.00023013,7]
[312173177,1705678271015,-151.0,0.00023013,7]
[312173178,1705678271025,-441.834862,0.00023013,7]
[312173179,1705678271034,-441.834862,0.00023013,7]
[312173180,1705678271045,-151.0,0.00023013,7]
[312173181,1705678271056,-151.0,0.00023013,7]
[312173182,1705678271065,-151.0,0.00023013,7]
[312173183,1705678271076,-10000.0,0.00023013,7]
[312173184,1705678271086,-10000.0,0.00023013,7]
[312173185,1705678271097,-10000.0,0.00023013,7]
[312173186,1705678271107,-151.0,0.00023013,7]
[312173187,1705678271117,-206.540533,0.00023013,7]
[312173188,1705678271129,-151.0,0.00023013,7]
[312173189,1705678271139,-6207.719811,0.00023013,7]
[312173190,1705678271149,-6207.719811,0.00023013,7]
[312173191,1705678271159,-151.0,0.00023013,7]
[312173192,1705678271169,-7947.432464,0.00023013,7]
[312173193,1705678271178,-7947.432464,0.00023013,7]
[312173194,1705678271187,-500.0,0.00023013,2]
[312173195,1705678271197,-500.0,0.00023013,2]
[312173196,1705678271207,-500.0,0.00023013,2]
[312173197,1705678271216,-500.0,0.00023013,2]
[312173198,1705678271226,-500.0,0.00023013,2]
[312173199,1705678271235,-500.0,0.00023013,2]
[312173200,1705678271244,-500.0,0.00023013,2]
[312173201,1705678271254,-509.62,0.00023013,2]
[312173202,1705678271263,-500.0,0.00023013,2]
[312173203,1705678271273,-500.0,0.00023013,2]
[312173204,1705678271282,-500.0,0.00023013,2]
[312173205,1705678271292,-500.0,0.00023013,2]
[312173206,1705678271301,-500.0,0.00023013,2]
[312173207,1705678271310,-500.0,0.00023013,2]
[312173208,1705678271320,-500.0,0.00023013,2]
[312173209,1705678271330,-716.93,0.00023013,2]
[312173210,1705678271340,-500.0,0.00023013,2]
[312173211,1705678271351,-500.0,0.00023013,2]
[312173212,1705678271360,-500.0,0.00023013,2]
[312173213,1705678271370,-417.92247138,0.00023013,2]
[312173214,1705678271379,-651.75,0.00023013,2]
[312173215,1705678271389,-500.0,0.00023013,2]
[312173216,1705678271398,-747.07,0.00023013,2]
[312173217,1705678271408,-500.0,0.00023013,2]
[312173218,1705678271417,-500.0,0.00023013,2]
[312173219,1705678271427,-500.0,0.00023013,2]
[312173220,1705678271437,-500.0,0.00023013,2]
[312173221,1705678271446,-500.0,0.00023013,2]
[312173222,1705678271456,-500.0,0.00023013,2]
[312173223,1705678271466,-500.0,0.00023013,2]
[312173224,1705678271475,-536.44,0.00023013,2]
[312173225,1705678271485,-500.0,0.00023013,2]
[312173226,1705678271495,-500.0,0.00023013,2]
[312173227,1705678271504,-500.0,0.00023013,2]
[312173228,1705678271514,-500.0,0.00023013,2]
[312173229,1705678271524,-500.0,0.00023013,2]
[312173230,1705678271534,-838.95,0.00023013,2]
[312173231,1705678271543,-500.0,0.00023013,2]
[312173232,1705678271554,-500.0,0.00023013,2]